bitfinex-derivatives/quotes_ETHF0:USTF0_20250125
["timestamp","ask_amount","ask_price","bid_price","bid_amount"]
[1737829411474,0.47849,3344.3,3344.2,1.4475]
[1737829421082,0.44187472,3344.6,3344.2,1.4475]
[1737829421083,0.92033472,3344.6,3344.2,1.4475]
[1737829421288,0.44187472,3344.5,3344.4,3.68628]
[1737829421591,0.92076444,3344.7,3344.6,0.47845]
[1737829421787,0.47844,3344.7,3344.6,0.47845]
[1737829422179,0.44232444,3344.8,3344.6,0.47845]
[1737829422378,0.47843,3344.8,3344.7,1.5445]
[1737829425985,0.4784,3345.0,3344.8,0.47841]
[1737829426183,0.47841,3344.9,3344.8,3.2078]
[1737829426792,0.47841,3344.9,3344.7,2.02293]
[1737829427290,0.4784,3345.0,3344.8,3.2078]
[1737829427893,0.4784,3345.0,3344.8,3.68622]
[1737829428087,0.47841,3344.9,3344.8,3.2078]
[1737829428280,0.00293247,3345.1,3344.8,3.2078]
[1737829428484,0.48131247,3345.1,3344.9,0.4784]
[1737829428785,0.47839,3345.0,3344.8,3.68621]
[1737829428986,0.47839,3345.0,3344.8,0.47841]
[1737829431495,0.47839,3345.0,3344.7,1.5445]
[1737829431496,0.47839,3345.0,3344.7,2.02293]
[1737829431697,0.48131247,3345.1,3344.8,0.47841]
[1737829431898,0.47839,3345.0,3344.8,0.47841]
[1737829432500,0.00293247,3345.1,3344.7,1.5445]
[1737829432697,0.47841,3344.9,3344.7,2.02293]
[1737829433896,0.47842,3344.8,3344.7,1.5445]
[1737829434093,0.98432,3344.8,3344.7,1.5445]
[1737829435003,0.5059,3344.8,3344.6,3.2078]
[1737829435304,0.94944,3344.7,3344.6,3.2078]
[1737829435504,1.42114,3344.7,3344.6,3.2078]
[1737829437493,1.8629425,3344.7,3344.6,3.2078]
[1737829439901,4.5923025,3344.7,3343.8,3.2078]
[1737829440099,0.47855,3343.9,3343.8,3.2078]
[1737829440298,0.4418025,3344.3,3343.8,3.2078]
[1737829440493,0.47854,3344.0,3343.8,3.68636]
[1737829440799,0.47855,3343.9,3343.8,3.2078]
[1737829444808,0.4774,3344.3,3343.8,3.2078]
[1737829445003,3.45748,3344.5,3344.2,3.68631]
[1737829445202,3.45748,3344.5,3344.3,0.4815]
[1737829445203,3.45747,3344.5,3344.3,0.4815]
[1737829445508,0.4923,3344.6,3344.3,0.4815]
[1737829445805,0.47844,3344.7,3344.4,1.46637]
[1737829446007,0.4752,3344.9,3344.4,0.9879]
[1737829446309,0.4923,3345.0,3344.6,3.2078]
[1737829446496,0.97069,3345.0,3344.7,0.47843]
[1737829446900,3.68911247,3345.1,3344.7,0.47843]
[1737829447500,3.21073247,3345.1,3344.6,3.2078]
[1737829447710,3.21073247,3345.1,3344.6,3.68624]
[1737829447907,3.68912247,3345.1,3344.6,3.68624]
[1737829448511,0.48132247,3345.1,3344.6,3.68624]
[1737829448712,0.48132247,3345.1,3344.6,3.2078]
[1737829448913,0.48132247,3345.1,3344.7,0.47843]
[1737829450614,0.48132247,3345.1,3344.8,0.514]
[1737829453608,0.00293247,3345.1,3344.8,0.514]
[1737829453812,0.00293247,3345.1,3344.4,4.1957]
[1737829454116,0.47844,3344.7,3344.5,0.5129]
[1737829454813,0.00293247,3345.1,3344.5,0.5129]
[1737829455026,0.47843,3344.8,3344.5,0.5129]
[1737829455518,0.47844,3344.7,3344.5,0.5129]
[1737829455712,0.00293247,3345.1,3344.5,0.5129]
[1737829456108,0.00293247,3345.1,3344.6,0.47844]
[1737829456109,0.4784,3345.0,3344.6,0.47844]
[1737829456309,0.48131247,3345.1,3344.7,0.47843]
[1737829457517,0.00293247,3345.1,3344.8,3.2078]
[1737829457720,0.00293247,3345.1,3344.9,0.9651]
[1737829457913,0.00293247,3345.1,3345.0,0.5121]
[1737829460015,0.48131247,3345.1,3345.0,0.5121]
[1737829460216,0.00293247,3345.1,3345.0,0.5121]
[1737829460512,0.48131247,3345.1,3345.0,0.5121]
[1737829461826,14.03904498,3345.9,3345.8,0.47828]
[1737829462030,14.03904498,3345.9,3345.8,3.68608]
[1737829462417,9.60952969,3345.9,3345.8,3.68608]
[1737829463218,9.60952969,3345.9,3345.8,8.68608]
[1737829463612,9.60952969,3345.9,3345.8,10.1804909]
[1737829464226,9.60952969,3345.9,3345.8,5.1804909]
[1737829464930,0.47815,3346.7,3345.8,10.1944109]
[1737829465123,0.47815,3346.7,3346.6,0.47816]
[1737829465321,0.47815,3346.7,3346.5,3.2078]
[1737829465523,0.47815,3346.7,3346.6,0.47816]
[1737829466023,0.47815,3346.7,3346.5,3.2078]
[1737829466024,0.47815,3346.7,3346.5,3.68597]
[1737829466221,0.47816,3346.6,3346.5,3.2078]
[1737829466616,5.58652969,3346.7,3346.1,3.2078]
[1737829466824,0.47823,3346.2,3346.1,3.2078]
[1737829467129,0.47822,3346.3,3346.1,3.2078]
[1737829467929,2.37872969,3346.7,3346.1,3.2078]
[1737829468133,0.47821,3346.3,3346.1,3.68603]
[1737829470021,5.58652969,3346.7,3346.2,0.47822]
[1737829470230,0.47819,3346.4,3346.2,0.47822]
[1737829470434,0.47819,3346.4,3346.1,3.68603]
[1737829470631,0.47819,3346.5,3346.1,3.68603]
[1737829471629,5.58652969,3346.7,3346.2,0.47822]
[1737829472333,0.47819,3346.5,3346.1,3.68603]
[1737829472524,0.47819,3346.5,3346.2,0.47822]
[1737829472830,0.47818,3346.5,3346.1,3.68603]
[1737829473931,0.4782,3346.4,3346.1,3.68603]
[1737829474832,0.4394464,3346.6,3345.8,1.9866109]
[1737829475129,0.4915,3346.3,3345.8,1.9866109]
[1737829475330,0.96971,3346.3,3346.0,0.47825]
[1737829476126,0.4915,3346.3,3345.8,1.9866109]
[1737829476428,0.47823,3346.2,3345.9,0.47826]
[1737829477027,0.47825,3346.0,3345.8,1.9866109]
[1737829477225,0.47826,3345.9,3345.8,1.4944109]
[1737829484034,0.44013792,3346.0,3345.5,0.00448471]
[1737829484235,6.06483969,3345.6,3345.5,0.00448471]
[1737829485232,6.06483969,3345.6,3344.7,3.2078]
[1737829485233,1.19585,3345.5,3344.7,3.68623]
[1737829485431,0.4784,3345.0,3344.7,3.68623]
[1737829486833,0.47839,3345.0,3344.8,0.47842]
[1737829488640,0.00448471,3345.2,3344.8,0.47842]
[1737829488839,0.47841,3344.9,3344.8,0.47842]
[1737829490737,0.4784,3345.0,3344.9,0.4784]
[1737829492940,0.00448471,3345.2,3344.7,3.2078]
[1737829493142,0.48285471,3345.2,3345.1,0.47838]
[1737829493343,0.47838,3345.1,3345.0,0.47839]
[1737829495740,0.00448471,3345.2,3344.7,3.2078]
[1737829495741,0.4784,3345.0,3344.9,0.4784]
[1737829496837,0.47839,3345.1,3345.0,0.47839]
[1737829499042,0.47838,3345.1,3345.0,0.47839]
[1737829499433,0.00448471,3345.2,3344.7,3.2078]
[1737829499634,0.00448471,3345.2,3345.1,3.68618]
[1737829502341,0.5007,3345.8,3345.1,3.2078]
[1737829502545,0.5007,3345.8,3345.7,0.47829]
[1737829503243,3.2078,3346.0,3345.2,0.4948]
[1737829503445,3.2078,3346.0,3345.3,1.19588]
[1737829503745,3.2078,3346.0,3345.9,0.47826]
[1737829504041,3.2078,3346.0,3345.8,0.47827]
[1737829504243,3.2078,3346.0,3345.9,0.4948]
[1737829504439,3.2078,3346.0,3345.9,0.97306]
[1737829504638,3.68605,3346.0,3345.9,0.4948]
[1737829505035,4.12709336,3346.0,3345.9,0.4948]
[1737829505746,3.64884336,3346.0,3345.9,1.49396]
[1737829506844,3.64884336,3346.0,3345.9,1.0157]
[1737829507247,0.44104336,3346.0,3345.9,1.0157]
[1737829508240,0.47825,3346.0,3345.9,1.0157]
[1737829509546,0.47825,3346.0,3345.9,0.5209]
[1737829515935,3.2078,3346.9,3345.9,2.89962969]
[1737829516142,0.47811,3347.0,3346.6,0.47816]
[1737829516341,0.47811,3347.0,3346.4,3.2078]
[1737829516342,0.9979,3347.1,3346.5,0.47818]
[1737829516640,0.9979,3347.1,3346.7,0.47814]
[1737829517146,0.4781,3347.1,3346.7,0.47814]
[1737829517641,0.4781,3347.1,3346.5,0.48408471]
[1737829517846,0.4781,3347.1,3346.8,0.47813]
[1737829518046,0.4781,3347.1,3346.7,0.47814]
[1737829518344,0.47811,3347.0,3346.7,0.47814]
[1737829518540,0.47811,3347.0,3346.5,0.48408471]
[1737829518541,6.07782969,3347.4,3346.5,0.48408471]
[1737829518751,0.47813,3346.9,3346.6,0.47816]
[1737829519139,0.47812,3347.0,3346.7,0.4977]
[1737829519541,0.47812,3347.0,3346.7,0.97585]
[1737829520747,0.47812,3346.9,3346.7,0.4977]
[1737829520947,6.07782969,3347.4,3346.7,0.4977]
[1737829521149,0.47812,3347.0,3346.7,0.97585]
[1737829522345,6.07782969,3347.4,3346.7,0.4977]
[1737829522550,0.47812,3347.0,3346.7,0.97584]
[1737829524155,0.47812,3347.0,3346.8,0.47813]
[1737829524649,0.47814,3346.8,3346.7,0.4977]
[1737829525646,7.27295969,3347.4,3346.7,0.4977]
[1737829525854,0.47813,3346.9,3346.7,0.97585]
[1737829526049,7.27295969,3347.4,3346.7,0.97585]
[1737829526050,7.27295969,3347.4,3346.7,0.4977]
[1737829526354,0.47814,3346.8,3346.7,0.4977]
[1737829530560,0.47814,3346.8,3346.7,0.97585]
[1737829530955,0.47814,3346.8,3346.7,0.4977]
[1737829532255,0.47814,3346.8,3346.7,0.97585]
[1737829534853,0.47814,3346.8,3346.7,0.4977]
[1737829535153,0.47816,3346.7,3346.6,0.47816]
[1737829535355,0.95566,3346.7,3346.6,0.47816]
[1737829535757,0.95565,3346.7,3346.6,0.47816]
[1737829536560,0.4775,3346.7,3346.6,0.47816]
[1737829539561,0.4775,3346.7,3346.5,3.69188471]
[1737829539562,0.96493,3346.9,3346.5,3.69188471]
[1737829539762,0.47813,3346.9,3346.7,0.47814]
[1737829540559,0.96842,3347.0,3346.8,0.47814]
[1737829540967,0.47812,3346.9,3346.8,0.47814]
[1737829541267,0.47812,3346.9,3346.7,0.47814]
[1737829542358,0.47812,3346.9,3346.8,0.5047]
[1737829542869,0.91913697,3346.9,3346.8,0.5047]
[1737829543064,0.44101697,3346.9,3346.8,0.98284]
[1737829543466,0.47811,3347.0,3346.8,0.98284]
[1737829543968,0.47811,3347.0,3346.8,0.5047]
[1737829544167,0.47812,3346.9,3346.8,0.5047]
[1737829544960,0.47812,3347.0,3346.8,0.5047]
[1737829545164,0.79875824,3347.0,3346.8,0.98283]
[1737829545464,0.44101697,3346.9,3346.8,0.98283]
[1737829545967,0.47812,3346.9,3346.8,0.5047]
[1737829546564,0.91913697,3346.9,3346.8,0.5047]
[1737829546759,0.47812,3346.9,3346.8,0.5047]
[1737829547363,0.91913697,3346.9,3346.8,0.5047]
[1737829547565,0.47812,3346.9,3346.8,0.5047]
[1737829548166,0.91913697,3346.9,3346.8,0.5047]
[1737829548371,0.47812,3346.9,3346.8,0.5047]
[1737829549173,0.91913697,3346.9,3346.8,0.5047]
[1737829549472,0.47812,3346.9,3346.8,0.5047]
[1737829552974,0.44101697,3347.1,3346.5,3.69188471]
[1737829553170,0.98525,3346.8,3346.6,0.47816]
[1737829553478,0.44101697,3346.7,3346.6,0.47816]
[1737829553669,0.44101697,3346.7,3346.5,3.69188471]
[1737829553873,0.47816,3346.6,3346.5,3.69188471]
[1737829554069,0.99906,3346.6,3346.5,3.69188471]
[1737829554275,1.44007697,3346.6,3346.5,3.69188471]
[1737829555374,0.99906,3346.6,3346.5,3.69188471]
[1737829556279,0.47816,3346.6,3346.5,4.17006471]
[1737829561785,0.92038027,3346.6,3346.5,4.17006471]
[1737829562877,0.44222027,3346.6,3346.5,4.17006471]
[1737829563985,0.44222027,3346.7,3346.6,0.47816]
[1737829564679,0.92037027,3346.8,3346.6,0.47816]
[1737829565884,0.92037027,3346.8,3346.7,0.47815]
[1737829567098,0.44222027,3346.8,3346.7,0.47815]
[1737829569980,0.92036027,3346.8,3346.6,0.47816]
[1737829573793,1.07254819,3346.7,3346.0,3.2078]
[1737829574085,1.07254819,3346.2,3346.1,0.5129]
[1737829574285,1.07254819,3346.2,3346.0,3.2078]
[1737829574596,1.07254819,3346.2,3345.7,0.5129]
[1737829574597,0.94929601,3346.1,3345.7,0.5129]
[1737829574797,1.07254819,3345.8,3345.7,0.5129]
[1737829575090,1.07254819,3345.8,3345.7,0.99119]
[1737829575788,0.47829,3345.7,3345.6,0.00448471]
[1737829575994,1.55082819,3345.8,3345.6,0.00448471]
[1737829576189,1.07254819,3345.8,3345.6,0.00448471]
[1737829576490,4.52980819,3346.0,3345.7,0.47829]
[1737829577280,0.47827,3345.9,3345.6,0.00448471]
[1737829577481,0.47827,3345.9,3345.6,0.48278471]
[1737829578999,0.47828,3345.8,3345.6,0.48278471]
[1737829580597,0.47827,3345.9,3345.7,0.47829]
[1737829580785,1.07254819,3346.0,3345.7,0.47829]
[1737829580985,1.0770329,3346.2,3345.6,1.0770329]
[1737829581187,1.0770329,3346.2,3346.0,0.47824]
[1737829581389,1.0770329,3346.2,3346.1,1.478]
[1737829581590,1.5552529,3346.2,3346.1,1.478]
[1737829582499,1.5552529,3346.2,3345.6,1.0770329]
[1737829582500,1.0770329,3346.2,3345.6,0.00448471]
[1737829582697,1.55083819,3345.8,3345.7,0.5051]
[1737829583395,0.47829,3345.7,3345.6,0.00448471]
[1737829583596,1.48309,3345.7,3345.6,0.00448471]
[1737829586205,1.92397036,3345.7,3345.6,0.00448471]
[1737829587202,1.92389576,3345.7,3345.6,0.00448471]
[1737829588402,1.48309,3345.7,3345.6,0.00448471]
[1737829589199,0.98859,3345.7,3345.6,0.00448471]
[1737829589499,0.47829,3345.8,3345.6,0.00448471]
[1737829589695,0.47829,3345.8,3345.6,0.50138471]
[1737829590799,0.47829,3345.8,3345.6,0.97968471]
[1737829591002,0.47828,3345.8,3345.6,1.45998471]
[1737829591400,0.47827,3345.9,3345.6,0.98168471]
[1737829591605,0.48271471,3346.2,3345.9,0.47826]
[1737829591805,0.47824,3346.1,3346.0,3.2078]
[1737829592205,0.00448471,3346.2,3346.0,3.2078]
[1737829592505,0.48270471,3346.2,3346.1,0.5093]
[1737829592698,0.48270471,3346.2,3345.6,0.48478471]
[1737829592699,0.00448471,3346.2,3345.6,0.48478471]
[1737829592896,0.47829,3345.7,3345.6,0.00448471]
[1737829595211,2.85632885,3345.7,3345.6,0.00448471]
[1737829595513,3.29716201,3345.7,3345.6,0.00448471]
[1737829596809,0.91912316,3345.7,3345.6,0.00448471]
[1737829597407,0.47829,3345.7,3345.6,0.00448471]
[1737829597910,0.96859,3345.7,3345.6,0.00448471]
[1737829598110,1.40942316,3345.7,3345.6,0.00448471]
[1737829603007,0.96859,3345.7,3345.6,0.00448471]
[1737829603431,0.96859,3345.7,3345.6,0.47578471]
[1737829604117,1.41047226,3345.7,3345.6,0.47578471]
[1737829604320,0.96859,3345.7,3345.6,0.47578471]
[1737829605321,1.41047267,3345.7,3345.6,0.47578471]
[1737829607419,1.41047267,3345.7,3345.6,0.99338471]
[1737829609722,2.48372708,3345.7,3345.6,0.99338471]
[1737829609923,2.48372708,3345.7,3345.6,0.00448471]
[1737829610726,0.47836,3345.2,3345.1,3.2078]
[1737829610923,1.55161441,3345.2,3345.1,3.2078]
[1737829611722,0.47836,3345.2,3345.1,3.2078]
[1737829612225,0.95706,3345.2,3345.1,3.2078]
[1737829613213,0.47841,3344.9,3344.8,0.00448471]
[1737829613416,0.47841,3344.9,3344.8,0.51958471]
[1737829614922,0.47841,3344.9,3344.8,0.00448471]
[1737829615326,0.98201,3344.9,3344.8,0.00448471]
[1737829615924,1.42389751,3344.9,3344.8,0.00448471]
[1737829616225,1.4237683,3344.9,3344.8,0.00448471]
[1737829616427,1.4237683,3344.9,3344.7,3.2078]
[1737829616428,0.47842,3344.8,3344.7,3.2078]
[1737829617023,0.92021191,3344.8,3344.7,3.2078]
[1737829617220,0.47842,3344.8,3344.7,3.2078]
[1737829617617,0.47841,3344.9,3344.7,3.68623]
[1737829617818,0.4784,3345.0,3344.8,1.5002]
[1737829618618,0.44157761,3345.1,3344.8,1.5002]
[1737829618919,0.47839,3345.0,3344.8,1.97861]
[1737829619119,0.47839,3345.0,3344.8,1.5002]
[1737829620221,0.47841,3344.9,3344.8,1.5002]
[1737829620526,0.47838,3345.1,3344.8,1.97862]
[1737829621426,0.47838,3345.1,3344.8,1.97861]
[1737829621627,0.47838,3345.1,3344.9,0.47841]
[1737829621826,0.47838,3345.1,3344.8,1.5002]
[1737829622129,0.47838,3345.1,3344.8,1.97861]
[1737829623922,0.47839,3345.0,3344.8,1.97861]
[1737829624125,0.44157761,3345.2,3344.8,1.97861]
[1737829624420,0.47839,3345.1,3344.8,1.97861]
[1737829625631,0.47839,3345.1,3344.8,1.5002]
[1737829625832,0.47839,3345.1,3344.8,1.97861]
[1737829626330,0.47837,3345.2,3345.0,0.47839]
[1737829626832,2.85734852,3345.3,3345.0,0.47839]
[1737829628127,2.37898852,3345.3,3345.0,0.47839]
[1737829628331,0.47837,3345.2,3345.0,0.47839]
[1737829628727,0.47837,3345.2,3344.9,0.4784]
[1737829629327,2.37898852,3345.3,3344.9,0.4784]
[1737829629534,0.47838,3345.1,3344.9,0.4784]
[1737829629835,2.37898852,3345.0,3344.8,1.5002]
[1737829630133,0.47841,3344.9,3344.8,1.5002]
[1737829631933,2.37898852,3345.0,3344.8,1.5002]
[1737829631934,2.37898852,3345.0,3344.8,1.97862]
[1737829632531,2.85737852,3345.0,3344.8,1.97862]
[1737829632828,2.85738852,3345.0,3344.8,1.97862]
[1737829633031,2.37898852,3345.0,3344.9,0.47841]
[1737829633231,3.29924852,3345.0,3344.8,1.97862]
[1737829633427,0.44186,3344.9,3344.8,1.97862]
[1737829633837,0.44186,3344.9,3344.8,1.5002]
[1737829633838,0.92027,3344.9,3344.8,1.5002]
[1737829634437,0.92027,3344.9,3344.8,1.0232]
[1737829635936,0.44186,3344.9,3344.7,3.2078]
[1737829636237,0.47842,3344.8,3344.7,3.2078]
[1737829636431,0.99742,3344.8,3344.7,3.2078]
[1737829636634,1.43928,3344.8,3344.7,3.2078]
[1737829646449,0.47846,3344.5,3344.4,0.00448471]
[1737829646646,2.85744852,3344.5,3344.4,0.00448471]
[1737829646842,3.29930986,3344.5,3344.4,0.00448471]
[1737829652959,0.47851,3344.2,3344.1,3.7263]
[1737829654560,0.92037134,3344.2,3344.1,3.7263]
[1737829654760,3.29935986,3344.2,3344.1,3.2078]
[1737829655156,2.85749852,3344.2,3344.1,3.2078]
[1737829659773,2.37898852,3344.2,3343.9,0.4753]
[1737829660074,0.47854,3344.0,3343.9,0.4753]
[1737829661182,0.47849,3344.4,3343.9,0.4753]
[1737829661375,0.92027411,3344.4,3344.1,0.47852]
[1737829661571,0.47849,3344.4,3344.2,0.9772]
[1737829661767,0.47849,3344.3,3344.2,0.9772]
[1737829662376,2.38347323,3344.5,3344.2,0.9772]
[1737829662575,0.47849,3344.4,3344.2,0.9772]
[1737829662772,2.86195323,3344.5,3344.2,1.4557]
[1737829663177,0.00448471,3344.5,3344.3,0.47848]
[1737829663380,0.48295471,3344.5,3344.2,1.45569]
[1737829663570,0.00448471,3344.5,3344.3,0.47849]
[1737829664473,0.00448471,3344.5,3344.2,0.9772]
[1737829664679,0.00448471,3344.5,3344.4,0.47848]
[1737829665583,3.68621,3344.9,3344.6,0.47844]
[1737829665976,0.47843,3344.8,3344.6,0.47844]
[1737829666183,3.2078,3344.9,3344.2,0.9772]
[1737829666382,0.47845,3344.7,3344.4,0.47847]
[1737829666686,0.47845,3344.7,3344.5,3.68626]
[1737829667077,0.47845,3344.6,3344.5,3.68626]
[1737829667480,0.47845,3344.6,3344.5,3.2078]
[1737829669185,0.47845,3344.6,3344.5,3.68626]
[1737829669389,0.47844,3344.7,3344.6,0.47845]
[1737829670486,0.9203553,3344.8,3344.7,0.47844]
[1737829671291,0.4419253,3344.8,3344.7,0.47844]
[1737829671589,0.48290471,3344.9,3344.8,0.47842]
[1737829672683,0.00448471,3344.9,3344.8,0.47842]
[1737829677592,0.00448471,3344.9,3344.7,1.0166]
[1737829677987,0.47842,3344.8,3344.7,0.97273]
[1737829678187,0.95102,3344.8,3344.7,0.97273]
[1737829678891,0.95102,3344.8,3344.7,0.4943]
[1737829679089,0.95102,3344.8,3344.7,0.97274]
[1737829679286,0.4726,3344.8,3344.6,0.4979]
[1737829679595,0.95794,3344.7,3344.6,0.97635]
[1737829679992,0.4726,3344.8,3344.6,0.4979]
[1737829680198,0.4726,3344.8,3344.7,0.47843]
[1737829680199,0.47843,3344.8,3344.7,0.47843]
[1737829680393,0.00448471,3344.9,3344.7,0.4947]
[1737829680593,0.48290471,3344.9,3344.8,0.95472]
[1737829681400,0.00448471,3344.9,3344.8,0.95472]
[1737829683385,0.48289471,3344.9,3344.8,0.95472]
[1737829683788,0.00448471,3344.9,3344.8,0.95472]
[1737829685696,0.00448471,3344.9,3344.6,0.4979]
[1737829685896,0.47844,3344.7,3344.6,0.4979]
[1737829686290,0.98823,3344.8,3344.6,0.4979]
[1737829686792,0.47844,3344.7,3344.6,0.4979]
[1737829688399,0.47845,3344.6,3344.5,3.2078]
[1737829688592,0.95575,3344.6,3344.5,3.2078]
[1737829691697,0.47854,3344.0,3343.8,0.00448471]
[1737829691886,1.44375,3343.9,3343.8,0.00448471]
[1737829699104,0.9652,3343.9,3343.8,0.00448471]
[1737829699305,0.9652,3343.9,3343.8,0.48304471]
[1737829701201,0.9652,3343.9,3343.8,0.00448471]
[1737829701407,1.44375,3343.9,3343.8,0.00448471]
[1737829703007,0.9652,3343.9,3343.8,0.48304471]
[1737829704507,1.44375,3343.9,3343.8,0.00448471]
[1737829705915,0.47871,3342.8,3342.6,1.5173]
[1737829706110,0.47871,3342.8,3342.6,1.0202]
[1737829707013,1.0025,3342.9,3342.6,1.0202]
[1737829707416,0.47871,3342.8,3342.6,1.0202]
[1737829708014,0.47871,3342.8,3342.6,1.49893]
[1737829708615,0.47871,3342.8,3342.6,1.0202]
[1737829709813,0.47872,3342.7,3342.6,1.49893]
[1737829711716,0.47872,3342.7,3342.6,1.0202]
[1737829712922,0.47872,3342.7,3342.6,1.49894]
[1737829715915,0.47872,3342.7,3342.6,1.0202]
[1737829721328,0.47872,3342.7,3342.4,0.00448471]
[1737829721329,0.47875,3342.5,3342.4,0.00448471]
[1737829721522,3.68655,3342.5,3342.4,0.00448471]
[1737829721718,1.19696,3342.3,3341.4,0.5078]
[1737829721918,2.37898852,3341.8,3341.4,0.992]
[1737829722114,0.47889,3341.6,3341.4,0.992]
[1737829722626,0.47889,3341.6,3341.4,1.4709]
[1737829722814,0.47889,3341.6,3341.4,0.992]
[1737829723324,2.85787852,3341.5,3341.4,0.5078]
[1737829725527,2.37898852,3341.5,3341.2,0.00448471]
[1737829725829,0.47892,3341.3,3341.2,0.00448471]
[1737829727128,0.97462,3341.3,3341.2,0.00448471]
[1737829740136,2.37898852,3341.9,3341.2,3.21228471]
[1737829740336,2.37898852,3341.9,3341.5,3.2078]
[1737829740534,2.85782852,3341.9,3341.7,0.47886]
[1737829740737,2.85782852,3341.9,3341.6,1.45217]
[1737829741131,2.37898852,3341.9,3341.6,1.45217]
[1737829741334,0.47886,3341.7,3341.6,0.9733]
[1737829741539,0.47886,3341.8,3341.6,0.9733]
[1737829741730,0.47886,3341.8,3341.6,1.45218]
[1737829742934,2.37898852,3342.2,3341.6,0.9733]
[1737829743230,2.85777852,3342.2,3341.9,0.47883]
[1737829743431,0.47881,3342.1,3341.7,0.5232]
[1737829743630,0.47881,3342.1,3341.8,0.47884]
[1737829744035,2.85778852,3342.2,3341.9,0.47883]
[1737829744237,2.37898852,3342.2,3341.7,0.5232]
[1737829744439,0.47881,3342.1,3341.8,0.47885]
[1737829744830,2.37898852,3342.2,3341.7,0.5232]
[1737829745033,0.47881,3342.1,3341.8,0.47884]
[1737829746237,0.47884,3341.9,3341.6,1.45217]
[1737829746433,0.47885,3341.8,3341.6,0.9733]
[1737829746626,0.47884,3341.9,3341.6,0.9733]
[1737829746838,2.85782852,3341.9,3341.6,0.9733]
[1737829747040,2.37898852,3341.9,3341.6,0.9733]
[1737829747235,0.47886,3341.7,3341.6,0.9733]
[1737829751742,3.2078,3341.7,3341.0,3.2078]
[1737829751949,2.85790852,3341.3,3341.1,1.47015]
[1737829752139,2.85790852,3341.3,3341.1,0.9912]
[1737829753045,0.47892,3341.3,3341.1,1.47015]
[1737829753439,0.47892,3341.3,3341.1,0.9912]
[1737829753839,0.47892,3341.3,3341.1,1.47014]
[1737829754040,0.47892,3341.3,3341.1,0.9912]
[1737829754443,2.37898852,3341.6,3341.1,0.9912]
[1737829754650,0.4789,3341.5,3341.4,0.4789]
[1737829755243,2.37898852,3341.6,3341.4,0.4789]
[1737829755445,2.85786852,3341.6,3341.4,0.4789]
[1737829755949,2.37898852,3341.6,3341.1,0.9912]
[1737829756249,0.47886,3341.8,3341.6,0.47887]
[1737829756450,2.37898852,3341.9,3341.7,2.01406]
[1737829756849,2.85782852,3341.9,3341.7,2.01406]
[1737829757641,2.85782852,3341.9,3341.7,1.5352]
[1737829758242,2.37898852,3341.9,3341.7,1.5352]
[1737829758542,0.47885,3341.8,3341.7,1.0383]
[1737829758949,2.37898852,3341.9,3341.7,1.0383]
[1737829759147,2.85782852,3341.9,3341.7,1.51716]
[1737829759347,2.37898852,3341.9,3341.7,1.51716]
[1737829759952,2.37898852,3341.9,3341.8,0.47885]
[1737829760748,2.85782852,3341.9,3341.7,1.51716]
[1737829760947,0.44249109,3341.8,3341.7,1.51716]
[1737829761641,0.44249109,3341.8,3341.7,1.0383]
[1737829762451,0.47884,3341.9,3341.7,1.51716]
[1737829762643,0.44252459,3342.0,3341.7,1.0383]
[1737829762839,0.47885,3341.8,3341.7,1.0383]
[1737829763348,0.92137459,3341.8,3341.7,1.0383]
[1737829767954,0.47885,3341.8,3341.7,1.0383]
[1737829776058,0.92196473,3341.8,3341.7,1.0383]
[1737829778859,0.47885,3341.8,3341.7,1.0383]
[1737829787678,1.55418573,3342.0,3341.9,0.47883]
[1737829787877,0.44312787,3342.0,3341.9,0.47883]
[1737829788071,0.44312787,3342.1,3342.0,0.47882]
[1737829789877,0.44312787,3342.3,3342.2,0.47879]
[1737829790168,0.47875,3342.5,3342.3,0.47878]
[1737829790169,0.44312787,3342.4,3342.3,0.47878]
[1737829790569,0.47876,3342.4,3342.3,0.47878]
[1737829790774,0.47881,3342.1,3342.0,0.47882]
[1737829791175,2.38221848,3342.5,3341.9,3.2078]
[1737829791372,0.4788,3342.2,3342.1,0.4788]
[1737829795281,2.38221848,3342.5,3341.9,3.2078]
[1737829795582,0.47879,3342.3,3342.2,0.47878]
[1737829796377,2.38221848,3342.5,3341.9,3.2078]
[1737829796586,0.47881,3342.2,3342.1,0.4788]
[1737829798883,1.48131,3342.2,3342.1,0.4788]
[1737829799078,1.44501551,3342.2,3342.1,0.4788]
[1737829799984,1.92380551,3342.2,3342.1,0.4788]
[1737829801080,0.44251551,3342.2,3342.1,0.4788]
[1737829801385,0.47867,3343.1,3342.9,0.47869]
[1737829801684,0.5088,3343.1,3342.9,0.47869]
[1737829801984,0.47871,3342.8,3342.7,3.68651]
[1737829802377,0.44230331,3342.9,3342.3,3.6946]
[1737829802577,0.47874,3342.6,3342.4,0.47876]
[1737829802779,0.5088,3342.5,3342.4,0.47876]
[1737829804783,0.5088,3342.5,3342.4,0.99796]
[1737829804991,0.5088,3342.5,3342.4,4.20576]
[1737829805581,0.4846,3342.7,3342.6,0.47874]
[1737829805982,0.4866,3342.9,3342.8,0.47871]
[1737829808192,0.00448471,3343.0,3342.5,0.4808]
[1737829808388,0.00448471,3343.0,3342.9,0.47869]
[1737829812488,0.00448471,3343.0,3342.9,1.51059]
[1737829813500,0.44626965,3343.0,3342.9,1.51059]
[1737829813997,0.44626965,3343.0,3342.9,1.0319]
[1737829814198,0.92494965,3343.0,3342.9,1.0319]
[1737829814898,0.44626965,3343.0,3342.9,1.0319]
[1737829816198,0.00448471,3343.0,3342.9,1.51059]
[1737829816399,0.09337,3343.2,3343.1,0.47866]
[1737829816599,15.20896539,3343.6,3343.5,0.47861]
[1737829816994,12.38220548,3343.6,3343.5,0.47861]
[1737829817194,12.38220548,3343.6,3343.5,5.47861]
[1737829817494,12.38220548,3343.6,3343.5,5.95551]
[1737829817800,12.38220548,3343.6,3343.5,8.90751]